fUSD/lending_fUSD_20251019
["ID","MTS","AMOUNT","RATE_DAILY","PERIOD"]
[391837915,1760901049521,-502.11844791,0.00032876,8]
[391837916,1760901049532,-500.0,0.00032876,8]
[391837917,1760901049541,-500.0,0.00032876,8]
[391837918,1760901049671,-500.0,0.00032876,8]
[391837919,1760901049682,-500.0,0.00032876,8]
[391837920,1760901049691,-500.0,0.00032876,8]
[391837921,1760901049701,-510.88535864,0.00032876,8]
[391837922,1760901049711,-500.0,0.00032876,8]
[391837923,1760901049721,-500.0,0.00032876,8]
[391837924,1760901049732,-619.43358621,0.00032876,8]
[391837925,1760901049741,-500.0,0.00032876,8]
[391837926,1760901049751,-500.0,0.00032876,8]
[391837927,1760901049760,-500.0,0.00032876,8]
[391837928,1760901049771,-500.0,0.00032876,8]
[391837929,1760901049780,-566.28315403,0.00032876,8]
[391837930,1760901049790,-500.0,0.00032876,8]
[391837931,1760901049800,-500.0,0.00032876,7]
[391837932,1760901049809,-439.50981462,0.00032876,8]
[391837933,1760901049819,-500.0,0.00032876,8]
[391837934,1760901049828,-555.87219706,0.00032876,8]
[391837935,1760901049839,-378.87449559,0.00032876,8]
[391837936,1760901049848,-500.60106014,0.00032876,8]
[391837937,1760901049859,-516.2710523,0.00032876,8]
[391837938,1760901049868,-500.0,0.00032876,8]
[391837939,1760901049878,-500.0,0.00032876,8]
[391837940,1760901049888,-500.0,0.00032876,2]
[391837941,1760901049898,-500.0,0.00032876,8]
[391837942,1760901049908,-500.0,0.00032876,7]
[391837943,1760901049917,-526.53076299,0.00032876,8]
[391837944,1760901049927,-503.80267981,0.00032876,8]
[391837945,1760901049937,-500.0,0.00032876,8]
[391837946,1760901049947,-430.22750106,0.00032876,8]
[391837947,1760901049956,-500.0,0.00032876,8]
[391837948,1760901049966,-500.0,0.00032876,8]
[391837949,1760901049977,-447.5805564,0.00032876,8]
[391837950,1760901049986,-501.79272434,0.00032876,8]
[391837951,1760901049995,-500.0,0.00032876,8]
[391837952,1760901050005,-500.0,0.00032876,8]
[391837953,1760901050015,-403.97643727,0.00032876,8]
[391837954,1760901050025,-500.0,0.00032876,8]
[391837955,1760901050035,-500.0,0.00032876,8]
[391837956,1760901050044,-500.0,0.00032876,8]
[391837957,1760901050053,-500.0,0.00032876,8]
[391837958,1760901050063,-500.0,0.00032876,8]
[391837959,1760901050075,-500.0,0.00032876,8]
[391837960,1760901050084,-500.0,0.00032876,8]
[391837961,1760901050094,-563.83296341,0.00032876,8]
[391837962,1760901050103,-500.0,0.00032876,8]
[391837963,1760901050113,-1194.94,0.00032876,8]
[391837964,1760901050122,-500.0,0.00032876,8]
[391837965,1760901050131,-463.24,0.00032876,8]
[391837966,1760901050140,-526.15748821,0.00032876,8]
[391837967,1760901050150,-500.0,0.00032876,8]
[391837968,1760901050159,-514.99442584,0.00032876,8]
[391837969,1760901050169,-500.0,0.00032876,8]
[391837970,1760901050180,-500.0,0.00032876,8]
[391837971,1760901050189,-500.0,0.00032876,8]
[391837972,1760901050198,-500.0,0.00032876,8]
[391837973,1760901050207,-500.0,0.00032876,8]
[391837974,1760901050217,-518.97466856,0.00032876,8]
[391837975,1760901050227,-436.10335285,0.00032876,8]
[391837976,1760901050237,-503.10826701,0.00032876,8]
[391837977,1760901050246,-500.0,0.00032876,8]
[391837978,1760901050255,-601.36678861,0.00032876,8]
[391837979,1760901050265,-500.0,0.00032876,8]
[391837980,1760901050274,-5006.33,0.00032876,2]
[391837981,1760901050283,-1000.0,0.00032876,30]
[391837982,1760901050293,-1019.01,0.00032876,8]
[391837983,1760901050302,-500.0,0.00032876,8]
[391837984,1760901050312,-465.17896311,0.00032876,8]
[391837985,1760901050322,-1020.77,0.00032876,8]
[391837986,1760901050333,-525.8478821,0.00032876,8]
[391837987,1760901050343,-500.0,0.00032876,8]
[391837988,1760901050352,-500.0,0.00032876,8]
[391837989,1760901050361,-502.54255523,0.00032876,8]
[391837990,1760901050371,-501.0,0.00032876,8]
[391837991,1760901050380,-500.0,0.00032876,8]
[391837992,1760901050389,-502.78966549,0.00032876,8]
[391837993,1760901050399,-292.91098922,0.00032876,8]
[391837994,1760901050409,-500.0,0.00032876,8]
[391837995,1760901050419,-500.0,0.00032876,8]
[391837996,1760901050428,-500.0,0.00032876,8]
[391837997,1760901050438,-500.0,0.00032876,8]
[391837998,1760901050447,-500.0,0.00032876,8]
[391837999,1760901050457,-500.0,0.00032876,8]
[391838000,1760901050467,-500.0,0.00032876,8]
[391838001,1760901050476,-182.85451697,0.00032876,8]
[391838002,1760901050486,-500.0,0.00032876,8]
[391838003,1760901050495,-500.0,0.00032876,8]
[391838004,1760901050504,-500.0,0.00032876,8]
[391838005,1760901050514,-500.0,0.00032876,8]
[391838006,1760901050524,-500.0,0.00032876,8]
[391838007,1760901050533,-486.85464573,0.00032876,8]
[391838008,1760901050542,-500.0,0.00032876,8]
[391838009,1760901050551,-500.0,0.00032876,8]
[391838010,1760901050560,-500.0,0.00032876,8]
[391838011,1760901050569,-500.0,0.00032876,8]
[391838012,1760901050579,-501.77,0.00032876,8]
[391838013,1760901050588,-500.0,0.00032876,8]
[391838014,1760901050597,-500.0,0.00032876,8]
[391838015,1760901050607,-500.0,0.00032876,8]
[391838016,1760901050617,-539.81627612,0.00032876,8]
[391838017,1760901050626,-500.0,0.00032876,8]
[391838018,1760901050636,-151.0,0.00032876,30]
[391838019,1760901050646,-481.23732148,0.00032876,8]
[391838020,1760901050655,-151.0,0.00032876,30]
[391838021,1760901050664,-519.07287369,0.00032876,8]
[391838022,1760901050674,-151.0,0.00032876,30]
[391838023,1760901050683,-500.0,0.00032876,8]
[391838024,1760901050693,-151.0,0.00032876,30]
[391838025,1760901050702,-214.071706,0.00032876,30]
[391838026,1760901050712,-500.0,0.00032876,8]
[391838027,1760901050721,-500.0,0.00032876,8]
[391838028,1760901050731,-313.7263804,0.00032876,8]
[391838029,1760901050740,-525.4442101,0.00032876,8]
[391838030,1760901050750,-500.0,0.00032876,8]
[391838031,1760901050759,-500.0,0.00032876,8]
[391838032,1760901050768,-500.0,0.00032876,8]
[391838033,1760901050778,-1066.64,0.00032876,8]
[391838034,1760901050787,-845.63,0.00032876,8]
[391838035,1760901050796,-500.0,0.00032876,8]
[391838036,1760901050805,-300.0,0.00032876,2]
[391838037,1760901050815,-500.0,0.00032876,8]
[391838038,1760901050824,-500.0,0.00032876,8]
[391838039,1760901050833,-500.77685354,0.00032876,8]
[391838040,1760901050842,-693.55,0.00032876,7]
[391838041,1760901050851,-500.0,0.00032876,8]
[391838042,1760901050862,-500.0,0.00032876,8]
[391838043,1760901050873,-552.56531753,0.00032876,8]
[391838044,1760901050883,-500.0,0.00032876,8]
[391838045,1760901050892,-787.59,0.00032876,8]
[391838046,1760901050901,-500.0,0.00032876,8]
[391838047,1760901050911,-500.0,0.00032876,8]
[391838048,1760901050922,-500.0,0.00032876,8]
[391838049,1760901050931,-500.0,0.00032876,8]
[391838050,1760901050941,-500.0,0.00032876,8]
[391838051,1760901050950,-500.0,0.00032876,8]
[391838052,1760901050959,-504.58063556,0.00032876,8]
[391838053,1760901050969,-500.0,0.00032876,8]
[391838054,1760901050979,-500.0,0.00032876,8]
[391838055,1760901050989,-552.14,0.00032876,8]
[391838056,1760901050999,-500.0,0.00032876,8]
[391838057,1760901051009,-506.10309494,0.00032876,8]
[391838058,1760901051018,-500.0,0.00032876,8]
[391838059,1760901051027,-500.0,0.00032876,8]
[391838060,1760901051037,-500.0,0.00032876,8]
[391838061,1760901051047,-500.0,0.00032876,8]
[391838062,1760901051056,-500.0,0.00032876,8]
[391838063,1760901051066,-500.0,0.00032876,8]
[391838064,1760901051076,-500.0,0.00032876,8]
[391838065,1760901051085,-500.0,0.00032876,8]
[391838066,1760901051095,-500.0,0.00032876,8]
[391838067,1760901051104,-500.0,0.00032876,8]
[391838068,1760901051113,-500.0,0.00032876,8]
[391838069,1760901051121,-500.0,0.00032876,8]
[391838070,1760901051131,-500.0,0.00032876,8]
[391838071,1760901051140,-500.0,0.00032876,8]
[391838072,1760901051149,-500.0,0.00032876,8]
[391838073,1760901051159,-500.0,0.00032876,8]
[391838074,1760901051168,-500.0,0.00032876,8]
[391838075,1760901051178,-500.0,0.00032876,8]
[391838076,1760901051188,-500.0,0.00032876,8]
[391838077,1760901051197,-500.0,0.00032876,8]
[391838078,1760901051207,-500.0,0.00032876,8]
[391838079,1760901051216,-1166.2,0.00032876,8]
[391838080,1760901051227,-500.0,0.00032876,8]
[391838081,1760901051236,-500.0,0.00032876,8]
[391838082,1760901051246,-343.91286894,0.00032876,8]
[391838083,1760901051255,-601.39640603,0.00032876,8]
[391838084,1760901051265,-267.78911881,0.00032876,30]
[391838085,1760901051274,-500.0,0.00032876,8]
[391838086,1760901051282,-500.0,0.00032876,8]
[391838087,1760901051291,-500.0,0.00032876,8]
[391838088,1760901051300,-500.0,0.00032876,8]
[391838089,1760901051309,-500.0,0.00032876,8]
[391838090,1760901051319,-1574.86,0.00032876,8]
[391838091,1760901051328,-500.0,0.00032876,8]
[391838092,1760901051338,-602.86,0.00032876,8]
[391838093,1760901051347,-500.0,0.00032876,8]
[391838094,1760901051356,-500.0,0.00032876,8]
[391838095,1760901051366,-500.0,0.00032876,8]
[391838096,1760901051375,-500.0,0.00032876,8]
[391838097,1760901051384,-500.0,0.00032876,8]
[391838098,1760901051394,-538.54953136,0.00032876,8]
[391838099,1760901051403,-389.56736408,0.00032876,8]
[391838100,1760901051412,-565.76,0.00032876,8]
[391838101,1760901051422,-500.0,0.00032876,8]
[391838102,1760901051431,-500.0,0.00032876,8]
[391838103,1760901051441,-523.09,0.00032876,8]
[391838104,1760901051450,-500.0,0.00032876,8]
[391838105,1760901051459,-500.0,0.00032876,8]
[391838106,1760901051469,-506.82,0.00032876,8]
[391838107,1760901051478,-617.57598544,0.00032876,8]
[391838108,1760901051488,-500.0,0.00032876,8]
[391838109,1760901051497,-500.0,0.00032876,8]
[391838110,1760901051506,-500.0,0.00032876,8]
[391838111,1760901051516,-500.0,0.00032876,8]
[391838112,1760901051525,-645.76225516,0.00032876,8]
[391838113,1760901051534,-500.0,0.00032876,2]
[391838114,1760901051543,-500.0,0.00032876,8]
[391838115,1760901051553,-500.0,0.00032876,8]
[391838116,1760901051562,-500.0,0.00032876,8]
[391838117,1760901051571,-500.0,0.00032876,3]
[391838118,1760901051580,-526.57845703,0.00032876,8]
[391838119,1760901051589,-500.0,0.00032876,8]
[391838120,1760901051598,-500.0,0.00032876,8]
[391838121,1760901051608,-498.29365472,0.00032876,8]
[391838122,1760901051617,-500.0,0.00032876,8]
[391838123,1760901051626,-500.0,0.00032876,8]
[391838124,1760901051635,-500.0,0.00032876,8]
[391838125,1760901051644,-557.99679714,0.00032876,8]
[391838126,1760901051653,-500.0,0.00032876,8]
[391838127,1760901051663,-500.0,0.00032876,8]
[391838128,1760901051673,-500.0,0.00032876,8]
[391838129,1760901051682,-411.01247387,0.00032876,8]
[391838130,1760901051692,-500.0,0.00032876,8]
[391838131,1760901051700,-500.0,0.00032876,8]
[391838132,1760901051710,-500.0,0.00032876,8]
[391838133,1760901051719,-500.0,0.00032876,8]
[391838134,1760901051728,-511.1252141,0.00032876,8]
[391838135,1760901051737,-501.90293704,0.00032876,8]
[391838136,1760901051747,-151.0,0.00032876,30]
[391838137,1760901051757,-151.0,0.00032876,30]
[391838138,1760901051767,-151.0,0.00032876,30]
[391838139,1760901051776,-500.0,0.00032876,8]
[391838140,1760901051787,-500.0,0.00032876,8]
[391838141,1760901051796,-500.0,0.00032876,8]
[391838142,1760901051806,-518.16079226,0.00032876,8]
[391838143,1760901051815,-311.81557835,0.00032876,8]
[391838144,1760901051825,-500.0,0.00032876,8]
[391838145,1760901051835,-415.76846262,0.00032876,8]
[391838146,1760901051844,-500.0,0.00032876,8]
[391838147,1760901051853,-500.0,0.00032876,8]
[391838148,1760901051863,-500.0,0.00032876,8]
[391838149,1760901051879,-587.63093735,0.00032876,8]
[391838150,1760901051888,-524.25355281,0.00032876,8]
[391838151,1760901051899,-500.0,0.00032876,8]
[391838152,1760901051910,-500.0,0.00032876,8]
[391838153,1760901051919,-211.42391936,0.00032876,8]
[391838154,1760901051929,-500.0,0.00032876,8]
[391838155,1760901051939,-589.53054193,0.00032876,8]
[391838156,1760901051948,-198.637125,0.00032876,30]
[391838157,1760901051958,-500.0,0.00032876,8]
[391838158,1760901051968,-498.57569172,0.00032876,8]
[391838159,1760901051979,-500.0,0.00032876,8]
[391838160,1760901051990,-500.0,0.00032876,8]
[391838161,1760901051999,-501.27538931,0.00032876,8]
[391838162,1760901052009,-500.0,0.00032876,8]
[391838163,1760901052019,-395.64187224,0.00032876,8]
[391838164,1760901052028,-722.19,0.00032876,8]
[391838165,1760901052038,-150.20826396,0.00032876,8]
[391838166,1760901052048,-500.0,0.00032876,8]
[391838167,1760901052058,-508.41497175,0.00032876,8]
[391838168,1760901052068,-500.0,0.00032876,8]
[391838169,1760901052078,-501.93970877,0.00032876,8]
[391838170,1760901052088,-500.0,0.00032876,8]
[391838171,1760901052216,-630.42998509,0.00032876,8]
[391838172,1760901052228,-563.51296025,0.00032876,8]
[391838173,1760901052237,-447.22955805,0.00032876,8]
[391838174,1760901052247,-500.0,0.00032876,8]
[391838175,1760901052256,-500.0,0.00032876,8]
[391838176,1760901052267,-500.0,0.00032876,8]
[391838177,1760901052276,-503.95139837,0.00032876,8]
[391838178,1760901052286,-500.0,0.00032876,8]
[391838179,1760901052295,-500.0,0.00032876,8]
[391838180,1760901052305,-500.0,0.00032876,8]
[391838181,1760901052315,-502.14346995,0.00032876,8]
[391838182,1760901052325,-500.0,0.00032876,8]
[391838183,1760901052335,-1031.01,0.00032876,2]
[391838184,1760901052344,-433.21913627,0.00032876,8]
[391838185,1760901052354,-500.0,0.00032876,8]
[391838186,1760901052363,-500.27891344,0.00032876,8]
[391838187,1760901052373,-211.22522735,0.00032876,8]
[391838188,1760901052382,-500.0,0.00032876,8]
[391838189,1760901052391,-500.0,0.00032876,8]
[391838190,1760901052401,-500.0,0.00032876,8]
[391838191,1760901052411,-500.0,0.00032876,8]
[391838192,1760901052420,-603.74840541,0.00032876,8]
[391838193,1760901052430,-515.23998832,0.00032876,8]
[391838194,1760901052439,-500.0,0.00032876,8]
[391838195,1760901052448,-305.35635417,0.00032876,8]
[391838196,1760901052458,-500.0,0.00032876,8]
[391838197,1760901052467,-500.0,0.00032876,8]
[391838198,1760901052476,-500.0,0.00032876,8]
[391838199,1760901052486,-401.66319116,0.00032876,8]
[391838200,1760901052495,-254.2204316,0.00032876,8]
[391838201,1760901052504,-500.0,0.00032876,8]
[391838202,1760901052513,-500.0,0.00032876,8]
[391838203,1760901052523,-500.0,0.00032876,8]
[391838204,1760901052533,-500.0,0.00032876,8]
[391838205,1760901052542,-518.18786129,0.00032876,8]
[391838206,1760901052551,-500.0,0.00032876,8]
[391838207,1760901052561,-500.0,0.00032876,8]
[391838208,1760901052570,-337.93115681,0.00032876,8]
[391838209,1760901052580,-508.05954947,0.00032876,8]
[391838210,1760901052590,-365.21,0.00032876,8]
[391838211,1760901052599,-500.0,0.00032876,8]
[391838212,1760901052609,-500.0,0.00032876,8]
[391838213,1760901052618,-500.0,0.00032876,8]
[391838214,1760901052627,-500.0,0.00032876,8]
[391838215,1760901052638,-500.0,0.00032876,8]
[391838216,1760901052648,-500.0,0.00032876,8]
[391838217,1760901052657,-407.50805604,0.00032876,8]
[391838218,1760901052667,-161.64410645,0.00032876,8]
[391838219,1760901052676,-500.0,0.00032876,8]
[391838220,1760901052686,-431.23437807,0.00032876,8]
[391838221,1760901052696,-500.0,0.00032876,8]
[391838222,1760901052705,-905.21,0.00032876,8]
[391838223,1760901052715,-500.0,0.00032876,8]
[391838224,1760901052724,-501.05168892,0.00032876,8]
[391838225,1760901052734,-577.78142003,0.00032876,8]
[391838226,1760901052743,-615.48,0.00032876,2]
[391838227,1760901052753,-474.36812127,0.00032876,8]
[391838228,1760901052763,-500.0,0.00032876,8]
[391838229,1760901052772,-153.89823382,0.00032876,8]
[391838230,1760901052782,-616.85712642,0.00032876,8]
[391838231,1760901052792,-1291.19,0.00032876,8]
[391838232,1760901052802,-500.0,0.00032876,8]
[391838233,1760901052811,-273.26168004,0.00032876,8]
[391838234,1760901052820,-580.69,0.00032876,8]
[391838235,1760901052830,-500.0,0.00032876,8]
[391838236,1760901052839,-294.58741822,0.00032876,8]
[391838237,1760901052849,-1097.25,0.00032876,8]
[391838238,1760901052859,-411.48690512,0.00032876,8]
[391838239,1760901052869,-500.0,0.00032876,8]
[391838240,1760901052882,-500.0,0.00032876,8]
[391838241,1760901052891,-510.58697286,0.00032876,8]
[391838242,1760901052900,-522.52691447,0.00032876,8]
[391838243,1760901052911,-500.0,0.00032876,8]
[391838244,1760901052921,-500.0,0.00032876,8]
[391838245,1760901052930,-500.0,0.00032876,8]
[391838246,1760901052939,-427.2544204,0.00032876,8]
[391838247,1760901052950,-500.0,0.00032876,8]
[391838248,1760901052960,-500.0,0.00032876,8]
[391838249,1760901052969,-500.0,0.00032876,8]
[391838250,1760901052979,-501.79517519,0.00032876,8]
[391838251,1760901052990,-456.70711312,0.00032876,8]
[391838252,1760901052999,-500.0,0.00032876,8]
[391838253,1760901053009,-500.0,0.00032876,8]
[391838254,1760901053019,-500.0,0.00032876,8]
[391838255,1760901053028,-500.0,0.00032876,8]
[391838256,1760901053038,-334.69961044,0.00032876,8]
[391838257,1760901053048,-500.0,0.00032876,8]
[391838258,1760901053057,-929.45,0.00032876,8]
[391838259,1760901053067,-334.83209101,0.00032876,8]
[391838260,1760901053077,-500.0,0.00032876,8]
[391838261,1760901053086,-507.73225153,0.00032876,8]
[391838262,1760901053096,-500.0,0.00032876,8]
[391838263,1760901053105,-443.48883386,0.00032876,8]
[391838264,1760901053114,-500.0,0.00032876,8]
[391838265,1760901053124,-500.0,0.00032876,8]
[391838266,1760901053133,-500.0,0.00032876,8]
[391838267,1760901053142,-506.81323346,0.00032876,8]
[391838268,1760901053152,-506.29407623,0.00032876,8]
[391838269,1760901053162,-505.23308188,0.00032876,8]
[391838270,1760901053171,-501.79394249,0.00032876,8]
[391838271,1760901053181,-649.92,0.00032876,8]
[391838272,1760901053191,-500.0,0.00032876,8]
[391838273,1760901053201,-502.8027458,0.00032876,8]
[391838274,1760901053211,-1014.29,0.00032876,8]
[391838275,1760901053220,-500.0,0.00032876,8]
[391838276,1760901053230,-500.0,0.00032876,8]
[391838277,1760901053240,-500.0,0.00032876,8]
[391838278,1760901053249,-515.9439615,0.00032876,8]
[391838279,1760901053259,-500.0,0.00032876,8]
[391838280,1760901053270,-500.0,0.00032876,8]
[391838281,1760901053279,-500.0,0.00032876,8]
[391838282,1760901053288,-313.12077413,0.00032876,8]
[391838283,1760901053298,-503.12521617,0.00032876,8]
[391838284,1760901053307,-500.0,0.00032876,8]
[391838285,1760901053317,-500.0,0.00032876,8]
[391838286,1760901053327,-500.0,0.00032876,8]
[391838287,1760901053337,-483.07307986,0.00032876,8]
[391838288,1760901053347,-502.51813698,0.00032876,8]
[391838289,1760901053357,-152.385921,0.00032876,30]
[391838290,1760901053366,-500.0,0.00032876,8]
[391838291,1760901053376,-500.0,0.00032876,8]
[391838292,1760901053385,-502.55097447,0.00032876,8]
[391838293,1760901053395,-411.40399427,0.00032876,8]
[391838294,1760901053404,-659.928068,0.00032876,30]
[391838295,1760901053413,-659.928068,0.00032876,30]
[391838296,1760901053423,-500.94702737,0.00032876,8]
[391838297,1760901053432,-659.928068,0.00032876,30]
[391838298,1760901053441,-500.0,0.00032876,8]
[391838299,1760901053451,-500.0,0.00032876,8]
[391838300,1760901053460,-659.928068,0.00032876,30]
[391838301,1760901053469,-500.0,0.00032876,8]
[391838302,1760901053479,-500.0,0.00032876,8]
[391838303,1760901053488,-659.928068,0.00032876,30]
[391838304,1760901053496,-162.26924,0.00032876,2]
[391838305,1760901053504,-659.928068,0.00032876,30]
[391838306,1760901053514,-659.928068,0.00032876,30]
[391838307,1760901053523,-500.0,0.00032876,8]
[391838308,1760901053532,-500.0,0.00032876,8]
[391838309,1760901053542,-659.928068,0.00032876,30]
[391838310,1760901053552,-505.44541307,0.00032876,8]
[391838311,1760901053561,-659.928068,0.00032876,30]
[391838312,1760901053571,-659.928068,0.00032876,30]
[391838313,1760901053580,-500.0,0.00032876,8]
[391838314,1760901053589,-659.928068,0.00032876,30]
[391838315,1760901053599,-659.928068,0.00032876,30]
[391838316,1760901053608,-500.0,0.00032876,8]
[391838317,1760901053617,-659.928068,0.00032876,30]
[391838318,1760901053628,-5418.27957446,0.00032902,3]
[391838319,1760901053638,-413.57575853,0.00032911,2]
[391838320,1760901053648,-1699.88148465,0.00032959,2]
[391838321,1760901053658,-8897.8857605,0.0003298,2]
[391838322,1760901053668,-5418.27957446,0.00033009,3]
[391838323,1760901053678,-4136.1851174,0.00033015,3]
[391838324,1760901053688,-5418.27957446,0.00033018,3]
[391838325,1760901053698,-8272.3702348,0.00033019,3]
[391838326,1760901053708,-978.69953136,0.00033025,2]
[391838327,1760901053718,-8272.3702348,0.00033028,3]
[391838328,1760901053729,-4136.1851174,0.00033029,3]
[391838329,1760901053740,-21673.1182978,0.00033029,3]
[391838330,1760901053750,-5418.27957446,0.00033038,3]
[391838331,1760901053760,-1249.75000001,0.00033038,2]
[391838332,1760901053770,-186.22945,0.00033038,30]
[391838333,1760901053779,-186.22945,0.00033038,30]
[391838334,1760901053789,-186.22945,0.00033038,30]
[391838335,1760901053799,-186.22945,0.00033038,30]
[391838336,1760901053809,-151.0,0.00033039,30]
[391838337,1760901053819,-186.754704,0.00033039,30]
[391838338,1760901053828,-659.928068,0.00033039,30]
[391838339,1760901053837,-659.928068,0.00033039,30]
[391838340,1760901053847,-659.928068,0.00033039,30]
[391838341,1760901053858,-5418.27957446,0.00033039,3]
[391838342,1760901053868,-33580.46552211,0.00033039,2]
[391838343,1760901053880,-500.0,0.00033048,8]
[391838344,1760901053890,-500.0,0.00033048,8]
[391838345,1760901053900,-500.0,0.00033048,8]
[391838346,1760901053910,-500.0,0.00033048,8]
[391838347,1760901053919,-500.0,0.00033048,8]
[391838348,1760901053929,-500.0,0.00033048,8]
[391838349,1760901053938,-500.0,0.00033048,7]
[391838350,1760901053948,-500.0,0.00033048,2]
[391838351,1760901053958,-500.0,0.00033048,8]
[391838352,1760901053967,-500.0,0.00033048,8]
[391838353,1760901053977,-500.0,0.00033048,8]
[391838354,1760901053987,-500.0,0.00033048,8]
[391838355,1760901053996,-500.0,0.00033048,8]
[391838356,1760901054006,-737.53,0.00033048,8]
[391838357,1760901054016,-500.0,0.00033048,8]
[391838358,1760901054025,-500.0,0.00033048,8]
[391838359,1760901054036,-500.0,0.00033048,8]
[391838360,1760901054045,-501.45613145,0.00033049,8]
[391838361,1760901054055,-500.0,0.00033049,8]
[391838362,1760901054064,-281.83171963,0.00033049,2]
[391838363,1760901054073,-500.0,0.00033049,8]
[391838364,1760901054082,-503.75461522,0.00033049,8]
[391838365,1760901054091,-500.0,0.00033049,8]
[391838366,1760901054101,-502.47139943,0.00033049,8]
[391838367,1760901054111,-502.21289602,0.00033049,8]
[391838368,1760901054120,-500.0,0.00033049,8]
[391838369,1760901054129,-500.0,0.00033049,8]
[391838370,1760901054139,-500.0,0.00033049,2]
[391838371,1760901054148,-501.08970485,0.00033049,8]
[391838372,1760901054158,-500.0,0.00033049,8]
[391838373,1760901054167,-584.910903,0.00033049,30]
[391838374,1760901054177,-584.910903,0.00033049,30]
[391838375,1760901054187,-584.910903,0.00033049,30]
[391838376,1760901054197,-584.910903,0.00033049,30]
[391838377,1760901054206,-186.22945,0.00033049,30]
[391838378,1760901054216,-186.22945,0.00033049,30]
[391838379,1760901054225,-186.22945,0.00033049,30]
[391838380,1760901054235,-186.22945,0.00033049,30]
[391838381,1760901054244,-280.86641714,0.00033129,8]
[391838382,1760901054255,-5418.27957446,0.00033129,3]
[391838383,1760901054265,-5418.27957446,0.00033139,3]
[391838384,1760901054274,-186.22945,0.0003314,30]
[391838385,1760901054284,-186.22945,0.0003314,30]
[391838386,1760901054294,-186.22945,0.0003314,30]
[391838387,1760901054303,-186.229446,0.0003314,30]
[391838388,1760901054313,-151.0,0.0003314,30]
[391838389,1760901054322,-86692.4731914,0.0003314,3]
[391838390,1760901054331,-157.86485125,0.0003314,2]
[391838391,1760901054340,-1699.88148465,0.00033141,2]
[391838392,1760901054349,-666.0,0.00033149,10]
[391838393,1760901054359,-500.0,0.00033149,8]
[391838394,1760901054368,-500.0,0.00033149,8]
[391838395,1760901054378,-500.0,0.00033149,8]
[391838396,1760901054387,-500.0,0.00033149,8]
[391838397,1760901054395,-500.0,0.00033149,7]
[391838398,1760901054404,-500.0,0.00033149,8]
[391838399,1760901054414,-500.0,0.00033149,8]
[391838400,1760901054423,-500.0,0.00033149,8]
[391838401,1760901054433,-500.0,0.00033149,8]
[391838402,1760901054443,-737.53,0.00033149,8]
[391838403,1760901054564,-737.53,0.00033149,8]
[391838404,1760901054574,-500.0,0.00033149,8]
[391838405,1760901054585,-500.0,0.00033149,8]
[391838406,1760901054595,-500.0,0.00033149,8]
[391838407,1760901054605,-500.0,0.00033149,8]
[391838408,1760901054615,-500.0,0.00033149,8]
[391838409,1760901054624,-1306.069427,0.0003315,8]
[391838410,1760901054634,-255.888322,0.0003315,8]
[391838411,1760901054643,-879.189762,0.0003315,8]
[391838412,1760901054654,-1378.819347,0.0003315,8]
[391838413,1760901054663,-1613.021271,0.0003315,8]
[391838414,1760901054674,-7716.287027,0.0003315,8]